fUSD/lending_fUSD_20250708
["ID","MTS","AMOUNT","RATE_DAILY","PERIOD"]
[370415191,1752009042644,-268.62970836,0.00024657,7]
[370415460,1752009045634,-234.20256335,0.00024608,2]
[370415461,1752009045644,-4662.09960881,0.00024657,7]
[370415466,1752009045684,-7219.45901814,0.00024657,7]
[370415484,1752009436128,158.37,0.00013699,2]
[370415486,1752009570335,427.0388008,0.00030137,120]
[370415520,1752009908647,7233.77,0.00014,2]
[370415521,1752009908675,8000.0,0.00014,2]
[370415522,1752009908701,8000.0,0.00014,2]
[370415523,1752009908725,8000.0,0.00014,2]
[370415524,1752009908750,8000.0,0.00014,2]
[370415525,1752009908776,8000.0,0.00014,2]
[370415526,1752009908798,8000.0,0.00014,2]
[370415527,1752009908820,8000.0,0.00014,2]
[370415528,1752009908844,8000.0,0.00014,2]
[370415529,1752009908871,8000.0,0.00014,2]
[370415530,1752009908895,8000.0,0.00014,2]
[370415531,1752009908924,8000.0,0.00014,2]
[370415532,1752009908949,8000.0,0.00014,2]
[370415533,1752009908977,8000.0,0.00014,2]
[370415534,1752009909000,1851.43922111,0.00014,2]
[370415559,1752010187679,250.0,0.00015,2]
[370415571,1752010231753,-186.71,0.00018596,2]
[370415573,1752010231763,-181.515989,0.00019784,2]
[370415575,1752010231772,-199.0,0.00021276,3]
[370415577,1752010231783,-168.533993,0.00021638,2]
[370415579,1752010231793,-504.0,0.00021747,2]
[370415581,1752010231801,-649.09164694,0.00021747,2]
[370415582,1752010231810,-150.0,0.00022414,2]
[370415583,1752010231821,-300.0,0.00022646,2]
[370415584,1752010231830,-300.0,0.00022647,2]
[370415585,1752010231840,-206.68499402,0.00022647,2]
[370415586,1752010231943,-93.31500598,0.00022647,2]
[370415587,1752010231952,-302.76,0.00022648,2]
[370415588,1752010231961,-301.16,0.00022648,2]
[370415589,1752010231971,-303.08,0.00022648,2]
[370415590,1752010231980,-302.38,0.00022648,2]
[370415591,1752010231989,-301.78,0.00022648,2]
[370415592,1752010231998,-301.77,0.00022648,2]
[370415593,1752010232008,-303.37,0.00022648,2]
[370415594,1752010232017,-302.07,0.00022648,2]
[370415595,1752010232027,-300.73,0.00022648,2]
[370415596,1752010232036,-301.04,0.00022648,2]
[370415597,1752010232046,-303.02,0.00022648,2]
[370415598,1752010232055,-300.42,0.00022648,2]
[370415599,1752010232064,-304.56,0.00022648,2]
[370415600,1752010232078,-304.68,0.00022648,2]
[370415601,1752010232088,-303.32,0.00022648,2]
[370415602,1752010232097,-303.82,0.00022648,2]
[370415603,1752010232107,-305.2,0.00022648,2]
[370415604,1752010232117,-305.18,0.00022648,2]
[370415605,1752010232127,-303.8,0.00022648,2]
[370415606,1752010232137,-504.0,0.0002284,3]
[370415607,1752010232146,-482.21896235,0.000229,8]
[370415608,1752010232156,-200.0,0.00023,2]
[370415609,1752010232165,-482.2189621,0.00023107,8]
[370415611,1752010232175,-167.26,0.00023127,2]
[370415612,1752010232185,-250.0,0.00023127,2]
[370415613,1752010232195,-375.28108493,0.00023128,2]
[370415614,1752010232204,-1000.0,0.00023135,2]
[370415615,1752010232214,-162.21,0.00023245,2]
[370415617,1752010232224,-649.35,0.00023257,2]
[370415619,1752010232233,-23731.14265481,0.00023285,2]
[370415623,1752010232295,-168.85734519,0.00023285,2]
[370415624,1752010232305,-171.6,0.00023288,2]
[370415625,1752010232315,-154.94,0.000233,2]
[370415626,1752010232324,-168.0,0.00023306,2]
[370415627,1752010232334,-482.2189621,0.00023314,9]
[370415628,1752010232344,-292.65,0.00023315,2]
[370415629,1752010232354,-500.0,0.00023315,2]
[370415630,1752010232364,-207.4,0.00023489,2]
[370415631,1752010232374,-46.42263916,0.00023521,9]
[370415632,1752010232386,-293.11494021,0.00023521,9]
[370415633,1752010232400,-142.68138273,0.00023521,9]
[370415634,1752010232411,-218.67,0.00023646,2]
[370415635,1752010232421,-354.34811272,0.00023646,2]
[370415644,1752010237676,-311.65188728,0.00023646,2]
[370415645,1752010237686,-101.77951852,0.00023653,2]
[370415646,1752010237736,-48.22048148,0.00023653,2]
[370415647,1752010237747,-150.0,0.00023659,4]
[370415648,1752010237757,-482.2189621,0.00023728,9]
[370415649,1752010237766,-171.6,0.00023778,2]
[370415650,1752010237776,-912.41,0.00023778,2]
[370415651,1752010237786,-327.08,0.00023778,2]
[370415652,1752010237796,-504.0,0.00023933,5]
[370415653,1752010237805,-482.2189621,0.00023934,10]
[370415654,1752010237815,-168.0,0.00023964,2]
[370415655,1752010237824,-160.0,0.00023986,2]
[370415656,1752010237835,-2319.67159432,0.00024,2]
[370415657,1752010237901,-7679.32840568,0.00024,2]
[370415658,1752010237911,-9999.0,0.00024,2]
[370415659,1752010237920,-5000.0,0.00024,5]
[370415660,1752010237930,-9999.0,0.00024,2]
[370415661,1752010237939,-345.36664748,0.00024009,2]
[370415662,1752010237949,-168.0,0.0002404,2]
[370415663,1752010237959,-168.0,0.00024067,2]
[370415664,1752010237968,-386.3,0.000241,2]
[370415665,1752010237978,-171.52,0.0002411,2]
[370415666,1752010237987,-326.41,0.0002411,2]
[370415667,1752010237996,-482.2189621,0.00024141,10]
[370415668,1752010238005,-386.3,0.000242,2]
[370415669,1752010238015,-168.0,0.00024239,2]
[370415670,1752010238025,-386.3,0.000243,2]
[370415671,1752010238034,-1754.0,0.000243,2]
[370415672,1752010238044,-482.2189621,0.00024348,11]
[370415673,1752010238053,-797.222301,0.00024378,4]
[370415674,1752010238062,-967.79905,0.0002441,2]
[370415676,1752010238072,-837.09214054,0.00024473,2]
[370415678,1752010238081,-292.65,0.00024481,2]
[370415679,1752010238090,-151.91,0.00024517,2]
[370415680,1752010238099,-104395.4200013,0.0002455,2]
[370415681,1752010238109,-550.45894238,0.00024552,4]
[370415682,1752010238119,-181.04475052,0.00024552,2]
[370415683,1752010238128,-2327.622,0.00024552,2]
[370415684,1752010238138,-1462.87356309,0.00024553,2]
[370415685,1752010238148,-482.2189621,0.00024555,11]
[370415686,1752010238157,-160.0,0.00024557,2]
[370415687,1752010238167,-5000.0,0.00024557,2]
[370415688,1752010238177,-166.61558195,0.00024557,2]
[370415689,1752010238187,-181.04475049,0.00024565,2]
[370415690,1752010238197,-181.04475049,0.00024578,2]
[370415691,1752010238207,-1462.87356309,0.00024584,2]
[370415692,1752010238216,-181.04475049,0.00024591,2]
[370415693,1752010238226,-420.0,0.00024593,2]
[370415694,1752010238236,-386.3,0.000246,2]
[370415695,1752010238246,-181.04475049,0.00024604,2]
[370415696,1752010238255,-157.116,0.0002461,7]
[370415697,1752010238265,-2718.422,0.0002461,7]
[370415698,1752010238275,-1462.87356309,0.00024615,2]
[370415699,1752010238285,-181.04475049,0.00024617,2]
[370415700,1752010238295,-181.04475049,0.0002463,2]
[370415701,1752010238304,-217.42,0.00024642,3]
[370415702,1752010238313,-181.04475049,0.00024643,2]
[370415703,1752010238323,-1462.87356309,0.00024646,2]
[370415704,1752010238333,-125949.84194,0.00024652,2]
[370415705,1752010238342,-4894.7260936,0.00024652,2]
[370415706,1752010238354,-4683.6100374,0.00024652,2]
[370415707,1752010238364,-164.8199018,0.00024652,2]
[370415708,1752010238373,-4162.7610123,0.00024652,2]
[370415709,1752010238384,-181.04475049,0.00024656,2]
[370415710,1752010238393,-300.0,0.00024656,2]
[370415711,1752010238403,-300.0,0.00024656,2]
[370415712,1752010238412,-523.0,0.00024657,2]
[370415713,1752010238422,-2279.3030338,0.00024657,7]
[370415714,1752010238431,-52239.66814722,0.00024657,7]
[370415715,1752010238441,-221.5848319,0.00024657,2]
[370415716,1752010238450,-851.53254645,0.00024657,2]
[370415717,1752010238460,-854.1,0.00024657,2]
[370415718,1752010238469,-854.1,0.00024657,2]
[370415719,1752010238479,-460.0,0.00024657,2]
[370415720,1752010238488,-460.0,0.00024657,2]
[370415721,1752010238498,-460.0,0.00024657,2]
[370415722,1752010238507,-460.0,0.00024657,2]
[370415762,1752010238914,-460.0,0.00024657,2]
[370415768,1752010238956,-460.0,0.00024657,2]
[370415769,1752010238966,-460.0,0.00024657,2]
[370415771,1752010238975,-460.0,0.00024657,2]
[370415773,1752010238985,-938.51,0.00024657,2]
[370415775,1752010238993,-460.0,0.00024657,2]
[370415777,1752010239003,-460.0,0.00024657,2]
[370415779,1752010239012,-160.0,0.00024657,7]
[370415781,1752010239022,-460.0,0.00024657,2]
[370415783,1752010239031,-460.0,0.00024657,2]
[370415785,1752010239041,-460.0,0.00024657,2]
[370415787,1752010239050,-544.01,0.00024657,2]
[370415789,1752010239060,-460.0,0.00024657,2]
[370415791,1752010239069,-161.626614,0.00024657,2]
[370415793,1752010239078,-460.0,0.00024657,2]
[370415795,1752010239088,-460.0,0.00024657,2]
[370415797,1752010239097,-460.0,0.00024657,2]
[370415799,1752010239107,-460.0,0.00024657,2]
[370415801,1752010239116,-460.0,0.00024657,2]
[370415802,1752010239125,-460.0,0.00024657,2]
[370415805,1752010239135,-460.0,0.00024657,2]
[370415807,1752010239145,-460.0,0.00024657,2]
[370415809,1752010239154,-460.0,0.00024657,2]
[370415811,1752010239164,-460.0,0.00024657,2]
[370415812,1752010239173,-581.57,0.00024657,2]
[370415814,1752010239184,-508.87,0.00024657,2]
[370415817,1752010239195,-460.0,0.00024657,2]
[370415819,1752010239205,-803.33,0.00024657,2]
[370415821,1752010239214,-242.894522,0.00024657,2]
[370415822,1752010239224,-731.55,0.00024657,2]
[370415825,1752010239234,-554.83690679,0.00024657,2]
[370415827,1752010239244,-367.46664549,0.00024657,2]
[370415828,1752010239254,-1023.03,0.00024657,2]
[370415829,1752010239264,-1023.03,0.00024657,2]
[370415830,1752010239274,-460.0,0.00024657,2]
[370415831,1752010239283,-460.0,0.00024657,2]
[370415832,1752010239293,-192.996708,0.00024657,2]
[370415833,1752010239303,-169.626995,0.00024657,2]
[370415834,1752010239313,-525.99478469,0.00024657,2]
[370415835,1752010239322,-233.475894,0.00024657,2]
[370415836,1752010239332,-152.727645,0.00024657,2]
[370415837,1752010239342,-254.849366,0.00024657,2]
[370415838,1752010239351,-460.0,0.00024657,2]
[370415839,1752010239361,-460.0,0.00024657,2]
[370415840,1752010239371,-397.55825609,0.00024657,2]
[370415841,1752010239380,-460.0,0.00024657,2]
[370415842,1752010239389,-460.0,0.00024657,2]
[370415843,1752010239400,-460.0,0.00024657,2]
[370415844,1752010239409,-460.0,0.00024657,2]
[370415845,1752010239419,-526.2,0.00024657,2]
[370415846,1752010239428,-615.04,0.00024657,2]
[370415847,1752010239438,-883.15,0.00024657,2]
[370415848,1752010239448,-238.23747548,0.00024657,2]
[370415849,1752010239458,-153.628784,0.00024657,2]
[370415850,1752010239468,-152.023778,0.00024657,2]
[370415851,1752010239478,-460.0,0.00024657,2]
[370415853,1752010239487,-460.0,0.00024657,2]
[370415854,1752010239497,-460.0,0.00024657,2]
[370415855,1752010239507,-460.0,0.00024657,2]
[370415856,1752010239516,-151.661503,0.00024657,2]
[370415857,1752010239526,-462.03,0.00024657,2]
[370415858,1752010239535,-460.0,0.00024657,2]
[370415859,1752010239544,-790.02,0.00024657,2]
[370415860,1752010239554,-151.0,0.00024657,7]
[370415861,1752010239563,-151.0,0.00024657,7]
[370415862,1752010239572,-151.0,0.00024657,7]
[370415863,1752010239581,-460.0,0.00024657,2]
[370415864,1752010239591,-285.24,0.00024657,7]
[370415865,1752010239600,-1080.74,0.00024657,2]
[370415866,1752010239609,-506.26,0.00024657,2]
[370415867,1752010239618,-230.7349,0.00024657,7]
[370415868,1752010239628,-460.0,0.00024657,2]
[370415869,1752010239638,-460.0,0.00024657,2]
[370415870,1752010239648,-460.0,0.00024657,2]
[370415871,1752010239664,-632.79,0.00024657,2]
[370415872,1752010239674,-667.8,0.00024657,2]
[370415873,1752010239683,-514.49,0.00024657,2]
[370415874,1752010239693,-1003.72,0.00024657,2]
[370415875,1752010239703,-500.0,0.00024657,2]
[370415876,1752010239713,-460.0,0.00024657,2]
[370415877,1752010239722,-151.0,0.00024657,7]
[370415878,1752010239732,-151.0,0.00024657,7]
[370415879,1752010239743,-460.0,0.00024657,2]
[370415880,1752010239753,-460.0,0.00024657,2]
[370415881,1752010239763,-902.69,0.00024657,2]
[370415882,1752010239772,-278.2066,0.00024657,7]
[370415883,1752010239782,-460.0,0.00024657,2]
[370415884,1752010239792,-554.63,0.00024657,2]
[370415885,1752010239801,-460.0,0.00024657,2]
[370415886,1752010239810,-175.97667447,0.00024657,2]
[370415887,1752010239819,-460.0,0.00024657,2]
[370415888,1752010239828,-460.0,0.00024657,2]
[370415889,1752010239838,-460.0,0.00024657,2]
[370415890,1752010239847,-460.0,0.00024657,2]
[370415891,1752010239857,-751.48,0.00024657,2]
[370415892,1752010239866,-460.0,0.00024657,2]
[370415893,1752010239876,-523.13,0.00024657,2]
[370415894,1752010239886,-460.0,0.00024657,2]
[370415895,1752010239895,-460.0,0.00024657,2]
[370415896,1752010239905,-460.0,0.00024657,2]
[370415897,1752010239914,-460.0,0.00024657,2]
[370415898,1752010239924,-460.0,0.00024657,2]
[370415899,1752010239933,-460.0,0.00024657,2]
[370415900,1752010239943,-779.43,0.00024657,2]
[370415901,1752010239953,-460.0,0.00024657,2]
[370415902,1752010239962,-200.0,0.00024657,2]
[370415903,1752010239972,-1008.04,0.00024657,2]
[370415904,1752010239981,-636.72,0.00024657,2]
[370415905,1752010239990,-460.0,0.00024657,2]
[370415906,1752010240000,-460.0,0.00024657,2]
[370415907,1752010240009,-460.0,0.00024657,2]
[370415908,1752010240019,-549.95,0.00024657,2]
[370415909,1752010240031,-460.0,0.00024657,2]
[370415910,1752010240041,-538.79869224,0.00024657,2]
[370415911,1752010240053,-460.0,0.00024657,2]
[370415912,1752010240062,-460.0,0.00024657,2]
[370415913,1752010240072,-460.0,0.00024657,2]
[370415914,1752010240081,-460.0,0.00024657,2]
[370415915,1752010240091,-460.0,0.00024657,2]
[370415916,1752010240101,-979.84,0.00024657,2]
[370415917,1752010240111,-763.04,0.00024657,2]
[370415918,1752010240120,-979.83,0.00024657,2]
[370415919,1752010240130,-460.0,0.00024657,2]
[370415920,1752010240141,-460.0,0.00024657,2]
[370415921,1752010240150,-460.0,0.00024657,2]
[370415922,1752010240160,-159.550234,0.00024657,2]
[370415923,1752010240169,-629.34,0.00024657,2]
[370415924,1752010240179,-460.0,0.00024657,2]
[370415925,1752010240188,-460.0,0.00024657,2]
[370415926,1752010240198,-460.0,0.00024657,2]
[370415927,1752010240208,-460.0,0.00024657,2]
[370415928,1752010240217,-460.0,0.00024657,2]
[370415929,1752010240226,-644.72,0.00024657,2]
[370415930,1752010240235,-644.72,0.00024657,2]
[370415931,1752010240244,-660.6,0.00024657,2]
[370415932,1752010240254,-644.72,0.00024657,2]
[370415933,1752010240263,-644.72,0.00024657,2]
[370415934,1752010240272,-644.72,0.00024657,2]
[370415935,1752010240281,-460.0,0.00024657,2]
[370415936,1752010240290,-644.72,0.00024657,2]
[370415937,1752010240300,-460.0,0.00024657,2]
[370415938,1752010240309,-644.72,0.00024657,2]
[370415939,1752010240318,-1116.94,0.00024657,2]
[370415940,1752010240327,-151.0,0.00024657,2]
[370415941,1752010240337,-460.0,0.00024657,2]
[370415942,1752010240346,-151.0,0.00024657,2]
[370415943,1752010240356,-286.806538,0.00024657,2]
[370415944,1752010240365,-460.0,0.00024657,2]
[370415945,1752010240375,-394.72933703,0.00024657,2]
[370415946,1752010240384,-584.37,0.00024657,2]
[370415947,1752010240393,-783.07,0.00024657,2]
[370415948,1752010240403,-392.27243054,0.00024657,2]
[370415949,1752010240412,-517.81,0.00024657,2]
[370415950,1752010240422,-460.0,0.00024657,2]
[370415951,1752010240431,-460.0,0.00024657,2]
[370415952,1752010240440,-460.0,0.00024657,2]
[370415953,1752010240450,-173.46069517,0.00024657,2]
[370415954,1752010240460,-495.96,0.00024657,2]
[370415955,1752010240470,-460.0,0.00024657,2]
[370415956,1752010240479,-460.0,0.00024657,2]
[370415957,1752010240489,-855.67,0.00024657,2]
[370415958,1752010240498,-787.22,0.00024657,2]
[370415959,1752010240508,-460.0,0.00024657,2]
[370415960,1752010240518,-1191.7,0.00024657,2]
[370415961,1752010240528,-549.41,0.00024657,2]
[370415962,1752010240537,-460.0,0.00024657,2]
[370415963,1752010240547,-612.97,0.00024657,2]
[370415964,1752010240556,-460.0,0.00024657,2]
[370415965,1752010240566,-460.0,0.00024657,2]
[370415966,1752010240575,-460.0,0.00024657,2]
[370415967,1752010240584,-940.62,0.00024657,2]
[370415968,1752010240593,-460.0,0.00024657,2]
[370415970,1752010240602,-549.52,0.00024657,2]
[370415971,1752010240612,-899.78,0.00024657,2]
[370415972,1752010240622,-460.0,0.00024657,2]
[370415973,1752010240631,-460.0,0.00024657,2]
[370415974,1752010240643,-707.17,0.00024657,2]
[370415975,1752010240657,-151.0,0.00024657,7]
[370415976,1752010240667,-219.15795431,0.00024657,2]
[370415977,1752010240678,-151.0,0.00024657,7]
[370415978,1752010240690,-460.0,0.00024657,2]
[370415979,1752010240699,-151.0,0.00024657,7]
[370415980,1752010240709,-151.0,0.00024657,7]
[370415981,1752010240720,-151.0,0.00024657,7]
[370415982,1752010240729,-460.0,0.00024657,2]
[370415983,1752010240739,-569.65,0.00024657,2]
[370415984,1752010240748,-558.79,0.00024657,2]
[370415985,1752010240758,-460.0,0.00024657,2]
[370415986,1752010240767,-460.0,0.00024657,2]
[370415987,1752010240776,-460.0,0.00024657,2]
[370415988,1752010240785,-486.72,0.00024657,2]
[370415989,1752010240795,-460.0,0.00024657,2]
[370415990,1752010240804,-460.0,0.00024657,2]
[370415991,1752010240813,-460.0,0.00024657,2]
[370415992,1752010240823,-460.0,0.00024657,2]
[370415993,1752010240832,-460.0,0.00024657,2]
[370415994,1752010240842,-460.0,0.00024657,2]
[370415995,1752010240850,-460.0,0.00024657,2]
[370415996,1752010240859,-460.0,0.00024657,2]
[370415997,1752010240869,-460.0,0.00024657,2]
[370415998,1752010240878,-800.42,0.00024657,2]
[370415999,1752010240887,-460.0,0.00024657,2]
[370416000,1752010240896,-988.6,0.00024657,2]
[370416001,1752010240906,-1097.67,0.00024657,2]
[370416002,1752010240915,-661.37,0.00024657,2]
[370416003,1752010240924,-460.0,0.00024657,2]
[370416004,1752010240934,-515.25,0.00024657,2]
[370416005,1752010240944,-460.0,0.00024657,2]
[370416006,1752010240953,-1338.15,0.00024657,2]
[370416007,1752010240963,-460.0,0.00024657,2]
[370416008,1752010240972,-1249.16,0.00024657,2]
[370416009,1752010240981,-1252.67,0.00024657,2]
[370416010,1752010240991,-460.0,0.00024657,2]
[370416011,1752010241001,-460.0,0.00024657,2]
[370416012,1752010241010,-460.0,0.00024657,2]
[370416013,1752010241019,-467.44,0.00024657,2]
[370416014,1752010241028,-274.07589327,0.00024657,2]
[370416015,1752010241038,-460.0,0.00024657,2]
[370416016,1752010241047,-460.0,0.00024657,2]
[370416017,1752010241056,-566.49,0.00024657,2]
[370416018,1752010241066,-492.14,0.00024657,2]
[370416019,1752010241075,-515.1,0.00024657,2]
[370416020,1752010241085,-151.0,0.00024657,7]
[370416021,1752010241095,-151.0,0.00024657,7]
[370416022,1752010241105,-151.0,0.00024657,7]
[370416023,1752010241115,-460.0,0.00024657,2]
[370416024,1752010241124,-949.32,0.00024657,2]
[370416025,1752010241134,-460.0,0.00024657,2]
[370416026,1752010241144,-211.583568,0.00024657,7]
[370416027,1752010241153,-1102.0,0.00024657,2]
[370416028,1752010241163,-460.0,0.00024657,2]
[370416029,1752010241172,-1640.09,0.00024657,2]
[370416030,1752010241182,-460.0,0.00024657,2]
[370416031,1752010241191,-460.0,0.00024657,2]
[370416032,1752010241203,-751.81,0.00024657,2]
[370416033,1752010241212,-460.0,0.00024657,2]
[370416034,1752010241222,-460.0,0.00024657,2]
[370416035,1752010241232,-460.0,0.00024657,2]
[370416036,1752010241241,-460.0,0.00024657,2]
[370416037,1752010241251,-460.0,0.00024657,2]
[370416038,1752010241260,-618.65,0.00024657,2]
[370416039,1752010241270,-460.0,0.00024657,2]
[370416040,1752010241280,-460.0,0.00024657,2]
[370416041,1752010241289,-460.0,0.00024657,2]
[370416042,1752010241298,-460.0,0.00024657,2]
[370416043,1752010241309,-577.97,0.00024657,2]
[370416044,1752010241318,-151.0,0.00024657,7]
[370416045,1752010241328,-151.0,0.00024657,7]
[370416046,1752010241338,-460.0,0.00024657,2]
[370416047,1752010241348,-151.0,0.00024657,7]
[370416048,1752010241452,-460.0,0.00024657,2]
[370416049,1752010241461,-460.0,0.00024657,2]
[370416050,1752010241471,-151.0,0.00024657,7]
[370416051,1752010241480,-151.0,0.00024657,7]
[370416052,1752010241490,-151.0,0.00024657,7]
[370416053,1752010241499,-798.29,0.00024657,2]
[370416054,1752010241508,-460.0,0.00024657,2]
[370416055,1752010241517,-460.0,0.00024657,2]
[370416056,1752010241526,-151.0,0.00024657,7]
[370416057,1752010241535,-151.0,0.00024657,7]
[370416058,1752010241545,-151.0,0.00024657,7]
[370416059,1752010241554,-655.98,0.00024657,2]
[370416060,1752010241563,-151.0,0.00024657,7]
[370416061,1752010241573,-151.0,0.00024657,7]
[370416062,1752010241582,-460.0,0.00024657,2]
[370416063,1752010241591,-479.2,0.00024657,2]
[370416064,1752010241601,-151.0,0.00024657,7]
[370416065,1752010241610,-460.0,0.00024657,2]
[370416066,1752010241619,-460.0,0.00024657,2]
[370416067,1752010241628,-460.0,0.00024657,2]
[370416068,1752010241638,-460.0,0.00024657,2]
[370416069,1752010241647,-460.0,0.00024657,2]
[370416070,1752010241660,-460.0,0.00024657,2]
[370416071,1752010241670,-460.0,0.00024657,2]
[370416072,1752010241680,-460.0,0.00024657,2]
[370416073,1752010241689,-577.23,0.00024657,2]
[370416074,1752010241699,-460.0,0.00024657,2]
[370416075,1752010241709,-515.89,0.00024657,2]
[370416076,1752010241718,-591.36,0.00024657,2]
[370416077,1752010241730,-744.98,0.00024657,2]
[370416078,1752010241740,-460.0,0.00024657,2]
[370416079,1752010241750,-952.02,0.00024657,2]
[370416080,1752010241761,-1098.85,0.00024657,2]
[370416081,1752010241771,-727.5,0.00024657,2]
[370416082,1752010241780,-629.81,0.00024657,2]
[370416083,1752010241790,-460.0,0.00024657,2]
[370416084,1752010241799,-460.0,0.00024657,2]
[370416085,1752010241810,-460.0,0.00024657,2]
[370416086,1752010241820,-460.0,0.00024657,2]
[370416087,1752010241830,-460.0,0.00024657,2]
[370416088,1752010241842,-460.0,0.00024657,2]
[370416089,1752010241852,-460.0,0.00024657,2]
[370416090,1752010241862,-821.0,0.00024657,2]
[370416091,1752010241872,-486.13,0.00024657,2]
[370416092,1752010241882,-460.0,0.00024657,2]
[370416093,1752010241892,-460.0,0.00024657,2]
[370416094,1752010241901,-460.0,0.00024657,2]
[370416095,1752010241911,-460.0,0.00024657,2]
[370416096,1752010241920,-460.0,0.00024657,2]
[370416097,1752010241928,-772.4,0.00024657,2]
[370416098,1752010241938,-460.0,0.00024657,2]
[370416099,1752010241947,-460.0,0.00024657,2]
[370416100,1752010241956,-460.0,0.00024657,2]
[370416101,1752010241965,-460.0,0.00024657,2]
[370416102,1752010241974,-635.92,0.00024657,2]
[370416103,1752010241983,-460.0,0.00024657,2]
[370416104,1752010241992,-627.89,0.00024657,2]
[370416105,1752010242002,-460.0,0.00024657,2]
[370416106,1752010242011,-460.0,0.00024657,2]
[370416107,1752010242020,-1215.77,0.00024657,2]
[370416108,1752010242030,-460.0,0.00024657,2]
[370416109,1752010242039,-460.0,0.00024657,2]
[370416110,1752010242048,-191.30723702,0.00024657,2]
[370416111,1752010242057,-844.55,0.00024657,2]
[370416112,1752010242067,-462.74,0.00024657,2]
[370416113,1752010242076,-460.0,0.00024657,2]
[370416114,1752010242088,-460.0,0.00024657,2]
[370416115,1752010242098,-460.0,0.00024657,2]
[370416116,1752010242108,-651.54,0.00024657,2]
[370416117,1752010242117,-1018.81,0.00024657,2]
[370416118,1752010242127,-460.0,0.00024657,2]
[370416119,1752010242136,-1380.19,0.00024657,2]
[370416120,1752010242146,-460.0,0.00024657,2]
[370416121,1752010242155,-460.0,0.00024657,2]
[370416122,1752010242164,-482.59,0.00024657,2]
[370416123,1752010242174,-574.49,0.00024657,2]
[370416124,1752010242183,-479.04,0.00024657,2]
[370416125,1752010242192,-460.0,0.00024657,2]
[370416126,1752010242202,-533.01,0.00024657,2]
[370416127,1752010242212,-920.02,0.00024657,2]
[370416128,1752010242222,-1432.77,0.00024657,2]
[370416129,1752010242231,-1156.35,0.00024657,2]
[370416130,1752010242240,-180.50548272,0.00024657,2]
[370416131,1752010242250,-488.52,0.00024657,2]
[370416132,1752010242260,-460.0,0.00024657,2]
[370416133,1752010242269,-460.0,0.00024657,2]
[370416134,1752010242279,-460.0,0.00024657,2]
[370416135,1752010242288,-677.09,0.00024657,2]
[370416136,1752010242297,-460.0,0.00024657,2]
[370416137,1752010242306,-460.0,0.00024657,2]
[370416138,1752010242315,-495.43,0.00024657,2]
[370416139,1752010242324,-460.0,0.00024657,2]
[370416140,1752010242334,-460.0,0.00024657,2]
[370416141,1752010242343,-460.0,0.00024657,2]
[370416142,1752010242353,-629.96,0.00024657,2]
[370416143,1752010242362,-460.0,0.00024657,2]
[370416144,1752010242371,-460.0,0.00024657,2]